[Event "Titled Tuesday Blitz February 14 Late 2023"]
[White "Costachi, Mihnea"]
[Black "Zochowski, Kacper"]
[WhiteFideId "1217518"]
[BlackFideId "1125494"]
[WhiteElo "2476"]
[BlackElo "2262"]
[Result "1-0"]
[Round "04"]
[TimeControl "180+2"]
[Date "2023.02.14"]
[WhiteClock "0:00:05"]
[BlackClock "0:00:11"]

1. Nc3 {[%clk 0:03:00]}  d6 {[%clk 0:02:57]} 2. d4 {[%clk 0:03:00]}  Nd7 {[%clk 0:02:57]} 3. e4 {[%clk 0:03:01]}  Ngf6 {[%clk 0:02:58]} 4. Nf3 {[%clk 0:03:02]}  e5 {[%clk 0:02:58]} 5. g4 {[%clk 0:03:02]}  Nxg4 {[%clk 0:02:55]} 6. Rg1 {[%clk 0:03:02]}  Ngf6 {[%clk 0:02:55]} 7. Be3 {[%clk 0:03:02]}  h6 {[%clk 0:02:55]} 8. Qd3 {[%clk 0:03:03]}  c6 {[%clk 0:02:56]} 9. O-O-O {[%clk 0:03:03]}  Qa5 {[%clk 0:02:53]} 10. Bh3 {[%clk 0:02:57]}  b5 {[%clk 0:02:41]} 11. Kb1 {[%clk 0:02:44]}  b4 {[%clk 0:02:40]} 12. Ne2 {[%clk 0:02:41]}  Ba6 {[%clk 0:02:36]} 13. c4 {[%clk 0:02:27]}  bxc3 {[%clk 0:02:11]} 14. Qxc3 {[%clk 0:02:27]}  Qxc3 {[%clk 0:02:06]} 15. Nxc3 {[%clk 0:02:28]}  g5 {[%clk 0:02:07]} 16. Bf5 {[%clk 0:02:13]}  Be7 {[%clk 0:02:02]} 17. h4 {[%clk 0:02:03]}  g4 {[%clk 0:01:46]} 18. Bxg4 {[%clk 0:01:56]}  Nxg4 {[%clk 0:01:47]} 19. Rxg4 {[%clk 0:01:56]}  Nf6 {[%clk 0:01:45]} 20. Rgg1 {[%clk 0:01:51]}  Nd7 {[%clk 0:01:24]} 21. h5 {[%clk 0:01:40]}  Bf6 {[%clk 0:01:15]} 22. d5 {[%clk 0:01:39]}  c5 {[%clk 0:01:14]} 23. Kc2 {[%clk 0:01:31]}  Ke7 {[%clk 0:01:12]} 24. Rg3 {[%clk 0:01:28]}  Nb6 {[%clk 0:01:00]} 25. b3 {[%clk 0:01:26]}  c4 {[%clk 0:00:59]} 26. b4 {[%clk 0:01:23]}  Nd7 {[%clk 0:00:59]} 27. a4 {[%clk 0:01:10]}  Bb7 {[%clk 0:00:59]} 28. Nd2 {[%clk 0:01:04]}  Rac8 {[%clk 0:00:57]} 29. Bxa7 {[%clk 0:01:03]}  Bg5 {[%clk 0:00:56]} 30. Be3 {[%clk 0:01:01]}  Bxe3 {[%clk 0:00:55]} 31. Rxe3 {[%clk 0:01:02]}  Nf6 {[%clk 0:00:55]} 32. Rh1 {[%clk 0:00:59]}  Rhg8 {[%clk 0:00:55]} 33. b5 {[%clk 0:00:54]}  Ra8 {[%clk 0:00:53]} 34. Nxc4 {[%clk 0:00:52]}  Rg2 {[%clk 0:00:54]} 35. Rf3 {[%clk 0:00:45]}  Nxe4 {[%clk 0:00:54]} 36. Nxe4 {[%clk 0:00:40]}  Bxd5 {[%clk 0:00:54]} 37. Ncxd6 {[%clk 0:00:40]}  Rxa4 {[%clk 0:00:52]} 38. Re1 {[%clk 0:00:29]}  Rg4 {[%clk 0:00:36]} 39. Rfe3 {[%clk 0:00:25]}  Ra2+ {[%clk 0:00:36]} 40. Kb1 {[%clk 0:00:24]}  Ra5 {[%clk 0:00:33]} 41. b6 {[%clk 0:00:18]}  Bxe4+ {[%clk 0:00:32]} 42. Nxe4 {[%clk 0:00:13]}  Rb5+ {[%clk 0:00:32]} 43. Kc2 {[%clk 0:00:14]}  Rxb6 {[%clk 0:00:32]} 44. Nc3 {[%clk 0:00:13]}  Rc6 {[%clk 0:00:27]} 45. Rxe5+ {[%clk 0:00:13]}  Kf6 {[%clk 0:00:28]} 46. R1e3 {[%clk 0:00:09]}  Rf4 {[%clk 0:00:26]} 47. Kd3 {[%clk 0:00:07]}  Kg7 {[%clk 0:00:23]} 48. f3 {[%clk 0:00:06]}  Rh4 {[%clk 0:00:22]} 49. Ne4 {[%clk 0:00:05]}  Rh1 {[%clk 0:00:17]} 50. Re2 {[%clk 0:00:05]}  Rg1 {[%clk 0:00:16]} 51. Ke3 {[%clk 0:00:05]}  Rcc1 {[%clk 0:00:16]} 52. Kf4 {[%clk 0:00:05]}  Kf8 {[%clk 0:00:11]} 53. Ra5 {[%clk 0:00:05]}  Kg7 {[%clk 0:00:11]} 54. Ra7 {[%clk 0:00:05]}  Kf8 {[%clk 0:00:11]} 55. Nd6 {[%clk 0:00:05]} 1-0


[Site "https://www.chess.com"]

[Event "Titled Tuesday Blitz February 14 Late 2023"]
[White "Golubka, Petro"]
[Black "Karas, Marek"]
[WhiteFideId "14114224"]
[BlackFideId "14928558"]
[WhiteElo "2371"]
[BlackElo "2227"]
[Result "1-0"]
[Round "04"]
[TimeControl "180+2"]
[Date "2023.02.14"]
[WhiteClock "0:01:55"]
[BlackClock "0:01:05"]

1. e4 {[%clk 0:03:00]}  e6 {[%clk 0:03:00]} 2. Qh5 {[%clk 0:02:59]}  d5 {[%clk 0:02:57]} 3. e5 {[%clk 0:02:59]}  c5 {[%clk 0:02:50]} 4. f4 {[%clk 0:02:58]}  g6 {[%clk 0:02:48]} 5. Qf3 {[%clk 0:02:58]}  Nc6 {[%clk 0:02:49]} 6. Bb5 {[%clk 0:02:58]}  Bd7 {[%clk 0:02:49]} 7. Bxc6 {[%clk 0:02:59]}  Bxc6 {[%clk 0:02:50]} 8. Qf2 {[%clk 0:02:58]}  d4 {[%clk 0:02:40]} 9. Nf3 {[%clk 0:02:59]}  Ne7 {[%clk 0:02:36]} 10. d3 {[%clk 0:02:59]}  h5 {[%clk 0:02:34]} 11. Nbd2 {[%clk 0:02:56]}  Bh6 {[%clk 0:02:24]} 12. Ne4 {[%clk 0:02:55]}  Bxe4 {[%clk 0:02:25]} 13. dxe4 {[%clk 0:02:54]}  Qa5+ {[%clk 0:02:21]} 14. Bd2 {[%clk 0:02:53]}  Qb5 {[%clk 0:02:22]} 15. b3 {[%clk 0:02:52]}  Qc6 {[%clk 0:02:19]} 16. Qe2 {[%clk 0:02:38]}  a6 {[%clk 0:02:08]} 17. O-O-O {[%clk 0:02:31]}  Qb5 {[%clk 0:02:08]} 18. Qd3 {[%clk 0:02:24]}  Qxd3 {[%clk 0:02:08]} 19. cxd3 {[%clk 0:02:25]}  O-O {[%clk 0:02:02]} 20. h3 {[%clk 0:02:23]}  Rfc8 {[%clk 0:01:55]} 21. g4 {[%clk 0:02:22]}  hxg4 {[%clk 0:01:55]} 22. hxg4 {[%clk 0:02:22]}  Bg7 {[%clk 0:01:56]} 23. Rdg1 {[%clk 0:02:15]}  b5 {[%clk 0:01:55]} 24. f5 {[%clk 0:02:10]}  c4 {[%clk 0:01:37]} 25. f6 {[%clk 0:02:08]}  cxd3+ {[%clk 0:01:37]} 26. Kb1 {[%clk 0:02:06]}  Nc6 {[%clk 0:01:25]} 27. fxg7 {[%clk 0:02:04]}  Kxg7 {[%clk 0:01:26]} 28. Bg5 {[%clk 0:02:03]}  Rg8 {[%clk 0:01:14]} 29. Bf6+ {[%clk 0:02:00]}  Kf8 {[%clk 0:01:13]} 30. Rc1 {[%clk 0:01:57]}  Nb4 {[%clk 0:01:08]} 31. Nxd4 {[%clk 0:01:56]}  Ke8 {[%clk 0:01:05]} 32. a3 {[%clk 0:01:55]} 1-0


[Site "https://www.chess.com"]

[Event "Titled Tuesday Blitz February 14 Late 2023"]
[White "Kaplan, Avi Harrison"]
[Black "EREBUNI91"]
[WhiteFideId "30934559"]
[WhiteElo "2146"]
[BlackElo "2724"]
[Result "0-1"]
[Round "04"]
[TimeControl "180+2"]
[Date "2023.02.14"]
[WhiteClock "0:00:01"]
[BlackClock "0:00:54"]

1. e4 {[%clk 0:03:00]}  c5 {[%clk 0:02:59]} 2. Nf3 {[%clk 0:03:00]}  d6 {[%clk 0:03:00]} 3. Bb5+ {[%clk 0:02:55]}  Nd7 {[%clk 0:02:59]} 4. O-O {[%clk 0:02:52]}  a6 {[%clk 0:02:58]} 5. Bd3 {[%clk 0:02:50]}  Ngf6 {[%clk 0:02:57]} 6. c3 {[%clk 0:02:50]}  b5 {[%clk 0:02:46]} 7. Re1 {[%clk 0:02:50]}  c4 {[%clk 0:02:43]} 8. Bc2 {[%clk 0:02:50]}  Bb7 {[%clk 0:02:41]} 9. a4 {[%clk 0:02:50]}  Nc5 {[%clk 0:02:38]} 10. axb5 {[%clk 0:02:17]}  axb5 {[%clk 0:02:38]} 11. Rxa8 {[%clk 0:02:17]}  Qxa8 {[%clk 0:02:36]} 12. Na3 {[%clk 0:02:18]}  Bxe4 {[%clk 0:02:32]} 13. Nxb5 {[%clk 0:02:11]}  Bxc2 {[%clk 0:02:25]} 14. Qxc2 {[%clk 0:01:54]}  Qc6 {[%clk 0:02:19]} 15. Nfd4 {[%clk 0:01:52]}  Qd7 {[%clk 0:02:18]} 16. Qb1 {[%clk 0:01:28]}  e5 {[%clk 0:02:11]} 17. Qa2 {[%clk 0:01:20]}  Be7 {[%clk 0:02:07]} 18. Qa8+ {[%clk 0:01:00]}  Qd8 {[%clk 0:01:58]} 19. Nc7+ {[%clk 0:00:53]}  Kf8 {[%clk 0:01:52]} 20. Qc6 {[%clk 0:00:49]}  exd4 {[%clk 0:01:49]} 21. cxd4 {[%clk 0:00:47]}  Nd3 {[%clk 0:01:35]} 22. Rd1 {[%clk 0:00:41]}  g6 {[%clk 0:01:32]} 23. Qxc4 {[%clk 0:00:40]}  Kg7 {[%clk 0:01:27]} 24. Qxd3 {[%clk 0:00:17]}  Qxc7 {[%clk 0:01:25]} 25. b3 {[%clk 0:00:17]}  d5 {[%clk 0:01:21]} 26. Re1 {[%clk 0:00:15]}  Bd6 {[%clk 0:01:21]} 27. h3 {[%clk 0:00:15]}  Re8 {[%clk 0:01:20]} 28. Rd1 {[%clk 0:00:11]}  Rc8 {[%clk 0:01:16]} 29. Bb2 {[%clk 0:00:09]}  Qc2 {[%clk 0:01:16]} 30. Qxc2 {[%clk 0:00:09]}  Rxc2 {[%clk 0:01:17]} 31. Bc3 {[%clk 0:00:10]}  Ne4 {[%clk 0:01:16]} 32. Ba5 {[%clk 0:00:10]}  Rb2 {[%clk 0:01:11]} 33. d3 {[%clk 0:00:08]}  Nxf2 {[%clk 0:01:10]} 34. Rc1 {[%clk 0:00:05]}  Nxd3 {[%clk 0:01:09]} 35. Rc6 {[%clk 0:00:05]}  Bg3 {[%clk 0:01:07]} 36. Kf1 {[%clk 0:00:02]}  Rxb3 {[%clk 0:01:05]} 37. Ke2 {[%clk 0:00:02]}  Nf4+ {[%clk 0:01:04]} 38. Kd2 {[%clk 0:00:02]}  Rb2+ {[%clk 0:01:04]} 39. Ke3 {[%clk 0:00:02]}  Rxg2 {[%clk 0:00:58]} 40. Kf3 {[%clk 0:00:02]}  Rg1 {[%clk 0:00:54]} 41. Bc7 {[%clk 0:00:03]}  Nh5 {[%clk 0:00:52]} 42. Bxg3 {[%clk 0:00:02]}  Rxg3+ {[%clk 0:00:53]} 43. Kf2 {[%clk 0:00:03]}  Rxh3 {[%clk 0:00:54]} 44. Kg2 {[%clk 0:00:04]}  Rd3 {[%clk 0:00:54]} 45. Kh2 {[%clk 0:00:05]}  Rxd4 {[%clk 0:00:54]} 46. Rc3 {[%clk 0:00:06]}  Rf4 {[%clk 0:00:54]} 47. Kh3 {[%clk 0:00:06]}  d4 {[%clk 0:00:54]} 48. Rd3 {[%clk 0:00:06]}  Kf6 {[%clk 0:00:54]} 49. Ra3 {[%clk 0:00:03]}  Ke5 {[%clk 0:00:54]} 50. Kg2 {[%clk 0:00:02]}  Ke4 {[%clk 0:00:55]} 51. Ra8 {[%clk 0:00:02]}  d3 {[%clk 0:00:54]} 52. Re8+ {[%clk 0:00:02]}  Kd4 {[%clk 0:00:55]} 53. Rc8 {[%clk 0:00:02]}  Ke3 {[%clk 0:00:55]} 54. Kh2 {[%clk 0:00:01]}  d2 {[%clk 0:00:54]} 55. Re8+ {[%clk 0:00:01]}  Re4 {[%clk 0:00:55]} 56. Rd8 {[%clk 0:00:02]}  Rd4 {[%clk 0:00:55]} 57. Re8+ {[%clk 0:00:02]}  Kd3 {[%clk 0:00:56]} 58. Ra8 {[%clk 0:00:01]}  d1=Q {[%clk 0:00:56]} 59. Ra3+ {[%clk 0:00:02]}  Kc4 {[%clk 0:00:55]} 60. Ra2 {[%clk 0:00:01]}  Rd2+ {[%clk 0:00:54]} 0-1


[Site "https://www.chess.com"]

[Event "Titled Tuesday Blitz February 14 Late 2023"]
[White "Cardoso Cardoso, Jose Gabriel"]
[Black "Girsh, Daniel"]
[WhiteFideId "4430492"]
[BlackFideId "30949190"]
[WhiteElo "2492"]
[BlackElo "2123"]
[Result "1-0"]
[Round "04"]
[TimeControl "180+2"]
[Date "2023.02.14"]
[WhiteClock "0:00:17"]
[BlackClock "0:00:13"]

1. c4 {[%clk 0:03:00]}  g6 {[%clk 0:02:57]} 2. Nc3 {[%clk 0:03:01]}  Bg7 {[%clk 0:02:58]} 3. g3 {[%clk 0:03:01]}  Nf6 {[%clk 0:02:58]} 4. Bg2 {[%clk 0:03:01]}  O-O {[%clk 0:02:59]} 5. d3 {[%clk 0:03:02]}  d6 {[%clk 0:02:57]} 6. e4 {[%clk 0:03:03]}  c5 {[%clk 0:02:56]} 7. Nge2 {[%clk 0:03:03]}  Nc6 {[%clk 0:02:56]} 8. h3 {[%clk 0:03:04]}  Nd4 {[%clk 0:02:52]} 9. Be3 {[%clk 0:03:03]}  e5 {[%clk 0:02:52]} 10. O-O {[%clk 0:03:03]}  Ne8 {[%clk 0:02:40]} 11. f4 {[%clk 0:03:01]}  f5 {[%clk 0:02:39]} 12. Kh2 {[%clk 0:03:00]}  Be6 {[%clk 0:02:35]} 13. Qd2 {[%clk 0:02:58]}  Qd7 {[%clk 0:02:33]} 14. Nd5 {[%clk 0:02:57]}  fxe4 {[%clk 0:02:23]} 15. dxe4 {[%clk 0:02:56]}  Nc7 {[%clk 0:02:13]} 16. Rae1 {[%clk 0:02:43]}  Rae8 {[%clk 0:02:11]} 17. b3 {[%clk 0:02:42]}  a6 {[%clk 0:02:01]} 18. Ng1 {[%clk 0:02:29]}  Rf7 {[%clk 0:01:59]} 19. Nf3 {[%clk 0:02:29]}  exf4 {[%clk 0:01:56]} 20. gxf4 {[%clk 0:02:27]}  Bxd5 {[%clk 0:01:55]} 21. exd5 {[%clk 0:02:25]}  Nxf3+ {[%clk 0:01:55]} 22. Bxf3 {[%clk 0:02:24]}  Rfe7 {[%clk 0:01:53]} 23. Bg4 {[%clk 0:02:23]}  Qd8 {[%clk 0:01:47]} 24. Bf2 {[%clk 0:02:23]}  Rxe1 {[%clk 0:01:46]} 25. Rxe1 {[%clk 0:02:23]}  Rxe1 {[%clk 0:01:43]} 26. Qxe1 {[%clk 0:02:24]}  Qe8 {[%clk 0:01:43]} 27. Qxe8+ {[%clk 0:02:23]}  Nxe8 {[%clk 0:01:44]} 28. Bc8 {[%clk 0:02:22]}  b5 {[%clk 0:01:37]} 29. Bxa6 {[%clk 0:01:43]}  b4 {[%clk 0:01:37]} 30. Bc8 {[%clk 0:01:38]}  Kf7 {[%clk 0:01:36]} 31. Be6+ {[%clk 0:01:36]}  Ke7 {[%clk 0:01:34]} 32. Kg2 {[%clk 0:01:27]}  Nc7 {[%clk 0:01:28]} 33. Bc8 {[%clk 0:01:24]}  Kd8 {[%clk 0:01:28]} 34. Bg4 {[%clk 0:01:23]}  Ke7 {[%clk 0:01:24]} 35. Be2 {[%clk 0:01:17]}  Ne8 {[%clk 0:01:24]} 36. Bd3 {[%clk 0:01:16]}  Kf7 {[%clk 0:01:16]} 37. Kf3 {[%clk 0:01:15]}  Bc3 {[%clk 0:01:13]} 38. h4 {[%clk 0:01:12]}  Nf6 {[%clk 0:01:10]} 39. f5 {[%clk 0:01:11]}  Be5 {[%clk 0:01:06]} 40. fxg6+ {[%clk 0:01:10]}  hxg6 {[%clk 0:01:07]} 41. Be3 {[%clk 0:01:07]}  Nd7 {[%clk 0:01:06]} 42. Bf1 {[%clk 0:01:03]}  Bf6 {[%clk 0:01:03]} 43. Kg3 {[%clk 0:00:59]}  Be5+ {[%clk 0:00:55]} 44. Kg4 {[%clk 0:00:56]}  Bf6 {[%clk 0:00:54]} 45. Be2 {[%clk 0:00:52]}  Kg7 {[%clk 0:00:53]} 46. Bf4 {[%clk 0:00:51]}  Ne5+ {[%clk 0:00:53]} 47. Kg3 {[%clk 0:00:50]}  Kf7 {[%clk 0:00:52]} 48. Bc1 {[%clk 0:00:49]}  Kg7 {[%clk 0:00:48]} 49. a4 {[%clk 0:00:49]}  bxa3 {[%clk 0:00:37]} 50. Bxa3 {[%clk 0:00:48]}  Be7 {[%clk 0:00:37]} 51. Bc1 {[%clk 0:00:43]}  Kf7 {[%clk 0:00:35]} 52. Bf4 {[%clk 0:00:41]}  Bf6 {[%clk 0:00:35]} 53. Bf1 {[%clk 0:00:39]}  Ke7 {[%clk 0:00:34]} 54. Be2 {[%clk 0:00:36]}  Kf7 {[%clk 0:00:34]} 55. Kh3 {[%clk 0:00:37]}  Ke7 {[%clk 0:00:31]} 56. Bg3 {[%clk 0:00:37]}  Kf7 {[%clk 0:00:30]} 57. Kg2 {[%clk 0:00:37]}  Bg7 {[%clk 0:00:29]} 58. Kf2 {[%clk 0:00:37]}  Bf6 {[%clk 0:00:29]} 59. Ke3 {[%clk 0:00:37]}  Ke7 {[%clk 0:00:27]} 60. Kd2 {[%clk 0:00:36]}  Kf7 {[%clk 0:00:26]} 61. Kc2 {[%clk 0:00:36]}  Ke7 {[%clk 0:00:26]} 62. Kb1 {[%clk 0:00:36]}  Kf7 {[%clk 0:00:25]} 63. Ka2 {[%clk 0:00:36]}  Bd8 {[%clk 0:00:21]} 64. Ka3 {[%clk 0:00:35]}  Ba5 {[%clk 0:00:20]} 65. Ka4 {[%clk 0:00:34]}  Bb4 {[%clk 0:00:20]} 66. Kb5 {[%clk 0:00:34]}  Ke7 {[%clk 0:00:20]} 67. Bxe5 {[%clk 0:00:22]}  dxe5 {[%clk 0:00:21]} 68. Bd3 {[%clk 0:00:23]}  Kf6 {[%clk 0:00:18]} 69. d6 {[%clk 0:00:21]}  Ke6 {[%clk 0:00:17]} 70. Kc6 {[%clk 0:00:20]}  Ba5 {[%clk 0:00:16]} 71. Bxg6 {[%clk 0:00:20]}  Bd8 {[%clk 0:00:17]} 72. h5 {[%clk 0:00:19]}  Bf6 {[%clk 0:00:17]} 73. Kxc5 {[%clk 0:00:18]}  Bg7 {[%clk 0:00:16]} 74. Kc6 {[%clk 0:00:18]}  e4 {[%clk 0:00:15]} 75. Bxe4 {[%clk 0:00:18]}  Be5 {[%clk 0:00:15]} 76. Bd5+ {[%clk 0:00:17]}  Kf6 {[%clk 0:00:13]} 77. c5 {[%clk 0:00:17]} 1-0


[Site "https://www.chess.com"]

[Event "Titled Tuesday Blitz February 14 Late 2023"]
[White "Hajiyev, Kanan"]
[Black "Alex_Sahakyan2006"]
[WhiteFideId "13404148"]
[WhiteElo "2197"]
[BlackElo "2696"]
[Result "0-1"]
[Round "04"]
[TimeControl "180+2"]
[Date "2023.02.14"]
[WhiteClock "0:00:04"]
[BlackClock "0:00:59"]

1. d4 {[%clk 0:03:00]}  Nf6 {[%clk 0:02:59]} 2. Nf3 {[%clk 0:03:00]}  d5 {[%clk 0:02:59]} 3. c4 {[%clk 0:03:00]}  e6 {[%clk 0:02:59]} 4. cxd5 {[%clk 0:03:01]}  exd5 {[%clk 0:02:59]} 5. Nc3 {[%clk 0:03:02]}  h6 {[%clk 0:02:59]} 6. Qc2 {[%clk 0:03:01]}  c6 {[%clk 0:02:59]} 7. Bf4 {[%clk 0:03:01]}  Bd6 {[%clk 0:02:59]} 8. Be5 {[%clk 0:02:52]}  Bg4 {[%clk 0:02:58]} 9. e3 {[%clk 0:02:43]}  Qe7 {[%clk 0:02:56]} 10. Bd3 {[%clk 0:02:16]}  Bxf3 {[%clk 0:02:55]} 11. Bxd6 {[%clk 0:02:11]}  Qxd6 {[%clk 0:02:56]} 12. gxf3 {[%clk 0:02:10]}  Nbd7 {[%clk 0:02:56]} 13. f4 {[%clk 0:02:04]}  O-O {[%clk 0:02:45]} 14. O-O {[%clk 0:01:59]}  Rfe8 {[%clk 0:02:42]} 15. Rab1 {[%clk 0:01:58]}  a5 {[%clk 0:02:41]} 16. Bf5 {[%clk 0:01:54]}  Nb6 {[%clk 0:02:28]} 17. b3 {[%clk 0:01:35]}  Qe7 {[%clk 0:02:21]} 18. Rbc1 {[%clk 0:01:34]}  Nc8 {[%clk 0:02:18]} 19. Bxc8 {[%clk 0:01:14]}  Raxc8 {[%clk 0:02:18]} 20. Qf5 {[%clk 0:01:14]}  g6 {[%clk 0:02:06]} 21. Qh3 {[%clk 0:01:12]}  h5 {[%clk 0:02:06]} 22. Kg2 {[%clk 0:01:10]}  Kh7 {[%clk 0:02:05]} 23. Rg1 {[%clk 0:01:08]}  Rcd8 {[%clk 0:01:58]} 24. Kh1 {[%clk 0:01:04]}  Rg8 {[%clk 0:01:54]} 25. Rg5 {[%clk 0:01:03]}  Ne4 {[%clk 0:01:48]} 26. Nxe4 {[%clk 0:00:48]}  Qxe4+ {[%clk 0:01:48]} 27. Qg2 {[%clk 0:00:48]}  Qxg2+ {[%clk 0:01:36]} 28. Kxg2 {[%clk 0:00:43]}  Kg7 {[%clk 0:01:16]} 29. Kf3 {[%clk 0:00:39]}  Kf6 {[%clk 0:01:15]} 30. h4 {[%clk 0:00:38]}  Ra8 {[%clk 0:01:15]} 31. f5 {[%clk 0:00:22]}  a4 {[%clk 0:01:12]} 32. Rc3 {[%clk 0:00:21]}  axb3 {[%clk 0:01:11]} 33. Rxb3 {[%clk 0:00:20]}  b5 {[%clk 0:01:11]} 34. Rc3 {[%clk 0:00:20]}  Rgc8 {[%clk 0:01:11]} 35. fxg6 {[%clk 0:00:20]}  fxg6 {[%clk 0:01:11]} 36. a3 {[%clk 0:00:20]}  Ra4 {[%clk 0:01:10]} 37. Rg1 {[%clk 0:00:20]}  Rc4 {[%clk 0:01:09]} 38. Rb3 {[%clk 0:00:20]}  Ra8 {[%clk 0:01:08]} 39. Rgb1 {[%clk 0:00:19]}  Rc2 {[%clk 0:01:06]} 40. Rg1 {[%clk 0:00:14]}  Kg7 {[%clk 0:01:05]} 41. Rg5 {[%clk 0:00:10]}  Rf8+ {[%clk 0:01:05]} 42. Kg3 {[%clk 0:00:02]}  Rcxf2 {[%clk 0:01:05]} 43. e4 {[%clk 0:00:02]}  dxe4 {[%clk 0:01:05]} 44. Rc5 {[%clk 0:00:01]}  R8f3+ {[%clk 0:01:04]} 45. Rxf3 {[%clk 0:00:02]}  Rxf3+ {[%clk 0:01:05]} 46. Kg2 {[%clk 0:00:02]}  Rxa3 {[%clk 0:01:01]} 47. Rxc6 {[%clk 0:00:02]}  Rd3 {[%clk 0:01:02]} 48. Rb6 {[%clk 0:00:01]}  Rxd4 {[%clk 0:01:02]} 49. Rxb5 {[%clk 0:00:02]}  e3 {[%clk 0:01:01]} 50. Re5 {[%clk 0:00:03]}  Rxh4 {[%clk 0:01:01]} 51. Rxe3 {[%clk 0:00:04]}  Rg4+ {[%clk 0:00:59]} 52. Kh3 {[%clk 0:00:04]}  Kh6 {[%clk 0:01:00]} 53. Re8 {[%clk 0:00:04]}  Ra4 {[%clk 0:01:00]} 54. Re5 {[%clk 0:00:04]}  Ra3+ {[%clk 0:00:59]} 55. Kh4 {[%clk 0:00:04]}  g5+ {[%clk 0:00:59]} 0-1


[Site "https://www.chess.com"]

[Event "Titled Tuesday Blitz February 14 Late 2023"]
[White "Martinez Ramirez, Lennis"]
[Black "Defend, Balint"]
[WhiteFideId "3509079"]
[BlackFideId "17004853"]
[WhiteElo "2426"]
[BlackElo "1673"]
[Result "0-1"]
[Round "04"]
[TimeControl "180+2"]
[Date "2023.02.14"]
[WhiteClock "0:00:06"]
[BlackClock "0:00:33"]

1. d4 {[%clk 0:03:00]}  Nf6 {[%clk 0:02:59]} 2. c4 {[%clk 0:03:01]}  e6 {[%clk 0:03:00]} 3. Nf3 {[%clk 0:02:59]}  b6 {[%clk 0:02:59]} 4. g3 {[%clk 0:02:59]}  Bb7 {[%clk 0:03:00]} 5. Bg2 {[%clk 0:02:59]}  Be7 {[%clk 0:03:00]} 6. O-O {[%clk 0:02:59]}  O-O {[%clk 0:03:00]} 7. d5 {[%clk 0:03:00]}  exd5 {[%clk 0:03:00]} 8. Nh4 {[%clk 0:03:00]}  c6 {[%clk 0:03:00]} 9. cxd5 {[%clk 0:03:00]}  Nxd5 {[%clk 0:03:01]} 10. Nf5 {[%clk 0:03:00]}  Nc7 {[%clk 0:03:02]} 11. e4 {[%clk 0:02:59]}  d5 {[%clk 0:03:02]} 12. exd5 {[%clk 0:03:00]}  Nxd5 {[%clk 0:03:00]} 13. Qg4 {[%clk 0:02:42]}  Bf6 {[%clk 0:02:58]} 14. Bh6 {[%clk 0:02:41]}  g6 {[%clk 0:02:51]} 15. Bxf8 {[%clk 0:02:09]}  Qxf8 {[%clk 0:02:51]} 16. Nc3 {[%clk 0:02:00]}  Nxc3 {[%clk 0:02:43]} 17. bxc3 {[%clk 0:02:00]}  h5 {[%clk 0:02:37]} 18. Qf4 {[%clk 0:01:52]}  gxf5 {[%clk 0:02:37]} 19. Qxf5 {[%clk 0:01:53]}  Bg7 {[%clk 0:02:23]} 20. Rad1 {[%clk 0:01:52]}  Na6 {[%clk 0:02:14]} 21. Qxh5 {[%clk 0:01:36]}  Qc5 {[%clk 0:02:14]} 22. Qh4 {[%clk 0:01:21]}  Qxc3 {[%clk 0:01:55]} 23. Rd7 {[%clk 0:01:21]}  Nc5 {[%clk 0:01:54]} 24. Rc7 {[%clk 0:01:15]}  Qe5 {[%clk 0:01:46]} 25. Re7 {[%clk 0:00:59]}  Qf6 {[%clk 0:01:46]} 26. Qxf6 {[%clk 0:00:42]}  Bxf6 {[%clk 0:01:47]} 27. Re2 {[%clk 0:00:42]}  Ba6 {[%clk 0:01:46]} 28. Bxc6 {[%clk 0:00:29]}  Bxe2 {[%clk 0:01:42]} 29. Bxa8 {[%clk 0:00:27]}  Bxf1 {[%clk 0:01:42]} 30. Kxf1 {[%clk 0:00:28]}  a5 {[%clk 0:01:41]} 31. h4 {[%clk 0:00:26]}  Kg7 {[%clk 0:01:41]} 32. Ke2 {[%clk 0:00:26]}  Na4 {[%clk 0:01:38]} 33. Kd3 {[%clk 0:00:23]}  Nc3 {[%clk 0:01:38]} 34. a3 {[%clk 0:00:20]}  b5 {[%clk 0:01:15]} 35. Bc6 {[%clk 0:00:20]}  a4 {[%clk 0:01:15]} 36. Be8 {[%clk 0:00:14]}  b4 {[%clk 0:01:14]} 37. axb4 {[%clk 0:00:14]}  a3 {[%clk 0:01:14]} 38. Kc2 {[%clk 0:00:12]}  Bd4 {[%clk 0:01:12]} 39. f3 {[%clk 0:00:10]}  Nd5 {[%clk 0:01:08]} 40. Kb3 {[%clk 0:00:09]}  Nxb4 {[%clk 0:01:08]} 41. Kxa3 {[%clk 0:00:09]}  Nc2+ {[%clk 0:01:00]} 42. Kb3 {[%clk 0:00:08]}  Ne1 {[%clk 0:01:00]} 43. h5 {[%clk 0:00:05]}  Nxf3 {[%clk 0:00:59]} 44. h6+ {[%clk 0:00:05]}  Kf8 {[%clk 0:00:58]} 45. Bc6 {[%clk 0:00:03]}  Ne5 {[%clk 0:00:55]} 46. Be4 {[%clk 0:00:03]}  Ng6 {[%clk 0:00:53]} 47. Kc4 {[%clk 0:00:03]}  Be3 {[%clk 0:00:54]} 48. h7 {[%clk 0:00:01]}  Kg7 {[%clk 0:00:54]} 49. Bd5 {[%clk 0:00:01]}  f6 {[%clk 0:00:31]} 50. Kc3 {[%clk 0:00:01]}  Kxh7 {[%clk 0:00:30]} 51. Kd3 {[%clk 0:00:02]}  Bg5 {[%clk 0:00:30]} 52. Ke4 {[%clk 0:00:02]}  Kg7 {[%clk 0:00:30]} 53. Kf5 {[%clk 0:00:03]}  Ne7+ {[%clk 0:00:31]} 54. Ke4 {[%clk 0:00:03]}  Nxd5 {[%clk 0:00:31]} 55. Kxd5 {[%clk 0:00:04]}  Kg6 {[%clk 0:00:32]} 56. Ke6 {[%clk 0:00:04]}  Kh5 {[%clk 0:00:32]} 57. g4+ {[%clk 0:00:05]}  Kxg4 {[%clk 0:00:32]} 58. Kd5 {[%clk 0:00:05]}  f5 {[%clk 0:00:33]} 59. Kd4 {[%clk 0:00:06]}  Kg3 {[%clk 0:00:33]} 0-1


[Site "https://www.chess.com"]